bitfinex-derivatives/quotes_BTCF0:USTF0_20241120
["timestamp","ask_amount","ask_price","bid_price","bid_amount"]
[1732125288990,0.05316168,94166.0,94165.0,0.31960016]
[1732125290192,0.06648135,94166.0,94165.0,0.16548]
[1732125290400,0.06648135,94166.0,94165.0,0.19745999]
[1732125290589,0.05304,94160.0,94153.0,0.3608]
[1732125290900,0.053043,94154.0,94153.0,0.3608]
[1732125291394,0.06647653,94154.0,94153.0,0.39903492]
[1732125291603,0.053043,94154.0,94153.0,0.39903492]
[1732125293396,0.053043,94154.0,94153.0,0.56451492]
[1732125293397,0.06648713,94154.0,94153.0,0.56451492]
[1732125294397,0.06648713,94154.0,94153.0,0.39903492]
[1732125294601,0.06648713,94154.0,94153.0,0.20371492]
[1732125294797,0.06648713,94154.0,94153.0,0.56451492]
[1732125296493,0.053047,94147.0,94146.0,0.00159322]
[1732125296699,0.08815711,94147.0,94146.0,0.00159322]
[1732125299101,0.06649113,94147.0,94146.0,0.00159322]
[1732125299288,0.08811836,94147.0,94146.0,0.00159322]
[1732125300692,0.0883082,94147.0,94146.0,0.00159322]
[1732125300998,0.08830783,94147.0,94146.0,0.00159322]
[1732125301199,0.08830717,94147.0,94146.0,0.00159322]
[1732125301591,0.09644083,94147.0,94146.0,0.00159322]
[1732125302299,0.053047,94147.0,94146.0,0.36239322]
[1732125302497,0.05316168,94166.0,94146.0,0.45799322]
[1732125302705,0.053038,94162.0,94161.0,0.3608]
[1732125302889,0.00012568,94166.0,94161.0,0.52264]
[1732125303096,0.053037,94165.0,94161.0,0.52264]
[1732125303295,0.053034,94170.0,94162.0,1.5]
[1732125303507,0.053027,94182.0,94169.0,0.51492016]
[1732125303803,0.053027,94182.0,94181.0,0.46166258]
[1732125303998,0.053027,94182.0,94181.0,0.62350258]
[1732125305504,0.053027,94182.0,94181.0,0.52264]
[1732125306700,0.053027,94182.0,94181.0,0.16184]
[1732125307404,0.053027,94182.0,94181.0,0.20139807]
[1732125307792,7.651e-05,94184.0,94181.0,0.20139807]
[1732125307997,0.053026,94184.0,94182.0,0.31852]
[1732125308198,0.053026,94184.0,94183.0,0.15402597]
[1732125308394,0.053026,94184.0,94183.0,0.47254597]
[1732125308805,0.053026,94184.0,94183.0,0.15402597]
[1732125308994,0.053027,94182.0,94181.0,0.03955807]
[1732125309200,0.053028,94180.0,94179.0,0.1618]
[1732125309414,0.053038,94163.0,94162.0,0.3608]
[1732125309601,0.053038,94163.0,94162.0,2.0226]
[1732125309912,0.053038,94163.0,94162.0,2.08276071]
[1732125311003,0.053038,94163.0,94162.0,1.92096071]
[1732125311200,0.053038,94163.0,94162.0,2.08276071]
[1732125312508,0.053038,94163.0,94162.0,1.92096071]
[1732125312701,0.053038,94163.0,94162.0,2.07131473]
[1732125313407,0.053038,94163.0,94162.0,0.53236]
[1732125313612,0.053044,94152.0,94151.0,0.17156]
[1732125313803,0.053044,94152.0,94151.0,1.67156]
[1732125314407,0.053044,94152.0,94151.0,0.23224802]
[1732125315010,0.053044,94152.0,94151.0,0.06068802]
[1732125315212,0.03700119,94157.0,94151.0,0.19276953]
[1732125315508,0.0314,94183.0,94156.0,0.51482597]
[1732125315509,0.053039,94161.0,94156.0,0.51482597]
[1732125315710,0.057927,94182.0,94160.0,1.08347371]
[1732125315711,0.053037,94166.0,94160.0,1.08347371]
[1732125315921,0.053038,94163.0,94161.0,0.41414161]
[1732125316213,0.053023,94189.0,94162.0,0.15402597]
[1732125316413,0.053022,94192.0,94178.0,0.15402597]
[1732125316610,0.053029,94179.0,94178.0,0.32558597]
[1732125316911,0.053029,94179.0,94178.0,0.68638597]
[1732125320212,0.053029,94179.0,94178.0,0.68438597]
[1732125320910,0.04340279,94207.0,94178.0,0.68438597]
[1732125320911,8.036e-05,94193.0,94178.0,0.72374946]
[1732125321113,0.05310136,94193.0,94192.0,0.3608]
[1732125321612,8.036e-05,94193.0,94192.0,0.3608]
[1732125322608,0.0368,94222.0,94192.0,0.67938083]
[1732125322808,0.053007,94219.0,94218.0,0.51482597]
[1732125324822,0.053007,94219.0,94218.0,0.55322968]
[1732125326418,0.053007,94219.0,94218.0,0.39920371]
[1732125326618,0.053007,94219.0,94212.0,0.17152]
[1732125326619,0.52543297,94219.0,94212.0,0.17152]
[1732125326912,0.05301,94213.0,94212.0,0.17152]
[1732125329307,0.06733171,94213.0,94212.0,0.17152]
[1732125329712,0.05301,94213.0,94212.0,0.17152]
[1732125330113,0.05301,94213.0,94212.0,0.53232]
[1732125331027,0.05301,94213.0,94212.0,0.17152]
[1732125331217,0.05301,94213.0,94205.0,0.03971582]
[1732125331218,0.053014,94206.0,94205.0,0.03971582]
[1732125331524,0.053014,94205.0,94192.0,0.00010083]
[1732125331713,0.053021,94193.0,94192.0,0.00010083]
[1732125332023,0.06731568,94193.0,94192.0,0.00010083]
[1732125332219,0.09791568,94193.0,94192.0,0.00010083]
[1732125332527,0.48159826,94193.0,94192.0,0.00010083]
[1732125332729,0.12079826,94193.0,94192.0,8.3e-07]
[1732125332922,0.48159826,94193.0,94192.0,8.3e-07]
[1732125333220,0.09019826,94193.0,94192.0,8.3e-07]
[1732125333521,0.00072,94201.0,94192.0,8.3e-07]
[1732125333720,0.053016,94201.0,94200.0,0.15402597]
[1732125334116,0.06720361,94201.0,94200.0,0.15402597]
[1732125334718,0.053016,94201.0,94200.0,0.15402597]
[1732125335312,0.053016,94201.0,94200.0,0.15264201]
[1732125335614,0.053016,94201.0,94200.0,0.51344201]
[1732125335817,0.053016,94201.0,94200.0,0.39941604]
[1732125336826,0.0673824,94201.0,94200.0,0.03861604]
[1732125337021,0.01436635,94201.0,94192.0,0.06200083]
[1732125337222,0.05302,94194.0,94193.0,1.5]
[1732125337725,0.05302,94194.0,94192.0,8.3e-07]
[1732125337726,0.053021,94193.0,94192.0,8.3e-07]
[1732125337927,0.053021,94193.0,94192.0,0.03942411]
[1732125338229,0.053021,94193.0,94192.0,1.53942411]
[1732125340233,0.053021,94193.0,94192.0,0.03942411]
[1732125340726,0.053021,94193.0,94192.0,0.06062713]
[1732125341233,0.0001,94205.0,94192.0,0.37910713]
[1732125341536,0.053018,94199.0,94192.0,0.06062713]
[1732125341723,0.053018,94198.0,94192.0,0.42142713]
[1732125342034,0.053114,94205.0,94204.0,0.15402597]
[1732125342236,0.053114,94205.0,94204.0,0.32022597]
[1732125343437,0.053114,94205.0,94204.0,0.38522597]
[1732125343742,0.3608,94237.0,94204.0,0.38522597]
[1732125343921,0.0305,94232.0,94218.0,0.3608]
[1732125344233,0.053,94230.0,94229.0,0.51482597]
[1732125344427,0.053001,94228.0,94227.0,0.1662]
[1732125344829,0.053001,94228.0,94227.0,0.527]
[1732125345143,0.053001,94228.0,94227.0,0.1662]
[1732125345327,0.0675335,94228.0,94227.0,0.1662]
[1732125346032,0.0675335,94228.0,94227.0,0.527]
[1732125346426,0.0675335,94228.0,94227.0,0.1662]
[1732125347033,0.0675335,94228.0,94227.0,0.527]
[1732125348433,0.09081173,94228.0,94227.0,0.1662]
[1732125348827,0.0675335,94228.0,94227.0,0.1662]
[1732125349531,0.01644089,94254.0,94227.0,0.78456]
[1732125349735,0.01644089,94254.0,94253.0,0.3608]
[1732125349736,0.052987,94254.0,94253.0,0.3608]
[1732125349930,0.08281543,94254.0,94253.0,0.3608]
[1732125350245,0.052987,94253.0,94252.0,0.14716]
[1732125350442,0.052987,94253.0,94237.0,0.15402597]
[1732125350443,0.08281543,94253.0,94237.0,0.15402597]
[1732125350747,0.052998,94233.0,94232.0,0.3608]
[1732125351034,0.052998,94233.0,94232.0,0.52696]
[1732125351035,0.07645974,94233.0,94232.0,0.52696]
[1732125351428,0.052998,94233.0,94232.0,0.52696]
[1732125351634,0.07646559,94233.0,94232.0,0.56525307]
[1732125351830,0.07651483,94233.0,94232.0,0.39909307]
[1732125352530,0.08313894,94233.0,94232.0,0.03829307]
[1732125352730,0.03014094,94233.0,94230.0,0.16616]
[1732125352932,0.053,94231.0,94230.0,0.16616]
[1732125353233,0.08314094,94231.0,94230.0,0.16616]
[1732125353535,0.08314094,94231.0,94230.0,0.20625045]
[1732125354034,0.07651683,94231.0,94230.0,0.20625045]
[1732125354441,0.053,94231.0,94230.0,0.20625045]
[1732125356033,0.053,94231.0,94230.0,0.04009045]
[1732125356345,0.053,94231.0,94230.0,0.16616]
[1732125356933,0.0764297,94231.0,94230.0,0.16616]
[1732125357739,0.053,94231.0,94230.0,0.16616]
[1732125358343,0.052993,94243.0,94230.0,0.16616]
[1732125358535,0.052993,94243.0,94238.0,0.15402597]
[1732125358536,0.052995,94239.0,94238.0,0.15402597]
[1732125358733,0.07637624,94239.0,94238.0,0.15402597]
[1732125358935,0.052995,94239.0,94238.0,0.15402597]
[1732125360633,0.052995,94239.0,94232.0,0.3608]
[1732125360940,0.052998,94233.0,94232.0,0.3608]
[1732125361649,0.09105005,94233.0,94232.0,0.3608]
[1732125361848,0.053,94231.0,94230.0,0.16616]
[1732125362152,0.0676354,94231.0,94230.0,0.16616]
[1732125362357,0.053002,94227.0,94226.0,0.03642268]
[1732125362547,0.0676374,94227.0,94226.0,0.16616]
[1732125362854,0.0676374,94227.0,94212.0,0.15402597]
[1732125362855,0.053008,94216.0,94215.0,1.50064]
[1732125363055,0.053008,94216.0,94215.0,0.16616]
[1732125363266,0.053008,94216.0,94215.0,0.20243958]
[1732125364170,0.06764452,94216.0,94215.0,0.03627958]
[1732125364361,0.053011,94211.0,94199.0,0.7178]
[1732125364665,0.053011,94211.0,94206.0,0.03586429]
[1732125364666,0.06764752,94211.0,94206.0,0.03586429]
[1732125364965,0.053016,94201.0,94200.0,0.3608]
[1732125365269,0.053017,94200.0,94199.0,0.16616]
[1732125365466,0.053017,94200.0,94199.0,0.12116]
[1732125365860,0.06763724,94200.0,94199.0,0.12116]
[1732125366361,0.053017,94200.0,94199.0,0.12116]
[1732125366666,0.0676991,94200.0,94199.0,0.12116]
[1732125366870,0.053017,94200.0,94199.0,0.12116]
[1732125367070,0.053019,94197.0,94196.0,0.16616]
[1732125367263,0.053021,94193.0,94192.0,8.3e-07]
[1732125367459,0.053029,94179.0,94178.0,0.3608]
[1732125367661,0.15402597,94179.0,94160.0,0.3608]
[1732125367863,0.053039,94161.0,94160.0,0.3608]
[1732125368259,0.36156,94186.0,94160.0,1.00864657]
[1732125368568,0.36156,94186.0,94185.0,0.51482597]
[1732125368569,0.053745,94186.0,94185.0,0.51482597]
[1732125368865,0.053025,94186.0,94185.0,0.68098597]
[1732125370469,0.0306,94211.0,94185.0,0.71757649]
[1732125370687,0.053018,94199.0,94198.0,0.15402597]
[1732125370883,0.06788187,94199.0,94198.0,0.15402597]
[1732125371183,0.053018,94199.0,94198.0,0.15402597]
[1732125371380,0.053018,94199.0,94188.0,0.15402597]
[1732125371381,0.053023,94189.0,94188.0,0.15402597]
[1732125371585,0.053023,94189.0,94188.0,0.32022597]
[1732125373584,0.053023,94189.0,94188.0,0.32166597]
[1732125374270,0.053012,94209.0,94188.0,0.32166597]
[1732125374473,0.053013,94207.0,94206.0,0.15402597]
[1732125374780,0.3608,94225.0,94206.0,0.15402597]
[1732125374981,0.053005,94222.0,94221.0,0.3608]
[1732125375292,0.053005,94222.0,94221.0,0.52844]
[1732125376573,0.053005,94222.0,94221.0,0.56573009]
[1732125382287,0.053005,94222.0,94221.0,0.03729009]
[1732125382492,0.05301,94212.0,94211.0,0.3608]
[1732125382783,0.053015,94203.0,94197.0,0.16764]
[1732125383582,0.053015,94203.0,94201.0,0.3608]
[1732125384085,0.053015,94203.0,94202.0,0.20512241]
[1732125384278,0.053015,94203.0,94202.0,0.16923225]
[1732125385078,0.053015,94203.0,94202.0,0.20183225]
[1732125388286,0.053015,94203.0,94202.0,0.20024]
[1732125388487,0.053012,94210.0,94202.0,0.20024]
[1732125388687,0.3608,94236.0,94209.0,0.51482597]
[1732125388688,0.052999,94233.0,94209.0,0.51482597]
[1732125388889,0.052999,94233.0,94220.0,0.15402597]
[1732125388890,0.053005,94221.0,94220.0,0.15402597]
[1732125390192,0.053005,94221.0,94220.0,0.31438597]
[1732125390587,0.3608,94226.0,94211.0,0.15402597]
[1732125390791,0.3608,94226.0,94193.0,0.3608]
[1732125390792,0.053016,94202.0,94201.0,0.3608]
[1732125390991,0.053016,94202.0,94201.0,0.39776352]
[1732125391696,0.053016,94202.0,94201.0,0.55178949]
[1732125392187,0.053016,94202.0,94201.0,0.39776352]
[1732125393296,0.3608,94203.0,94192.0,0.15466597]
[1732125393603,0.053022,94192.0,94177.0,0.16036]
[1732125393793,0.413827,94183.0,94177.0,0.03593979]
[1732125397389,0.053027,94183.0,94177.0,0.03593979]
[1732125397790,0.053027,94183.0,94178.0,0.1604]
[1732125398589,0.413827,94183.0,94178.0,0.1604]
[1732125402100,0.413827,94183.0,94177.0,0.03593979]
[1732125402101,0.413827,94183.0,94181.0,0.1604]
[1732125402692,0.413827,94183.0,94182.0,0.16199224]
[1732125404993,0.42862989,94183.0,94182.0,0.16199224]
[1732125405598,0.42862989,94183.0,94182.0,0.00159224]
[1732125407094,0.053031,94176.0,94175.0,0.16052758]
[1732125407404,0.06783389,94176.0,94175.0,0.16052758]
[1732125408299,0.053031,94176.0,94175.0,0.16052758]
[1732125408888,0.053031,94176.0,94175.0,0.19755459]
[1732125409692,0.06801996,94176.0,94175.0,0.19755459]
[1732125409997,0.053031,94176.0,94175.0,0.19755459]
[1732125410187,0.053018,94199.0,94175.0,0.29844524]
[1732125410392,0.053018,94199.0,94198.0,0.10089065]
[1732125410596,0.06796694,94199.0,94198.0,0.10089065]
[1732125411593,0.3608,94199.0,94195.0,0.15364]
[1732125411792,0.3608,94199.0,94179.0,1.53136]
[1732125411793,0.053027,94183.0,94182.0,0.10089065]
[1732125411989,0.053027,94183.0,94182.0,0.15364]
[1732125412395,0.053027,94183.0,94182.0,0.25453065]
[1732125412601,0.06803487,94183.0,94182.0,0.25453065]
[1732125412791,0.06803487,94183.0,94182.0,0.30765045]
[1732125413197,0.053027,94183.0,94182.0,0.30765045]
[1732125416903,0.053027,94183.0,94182.0,0.66845045]
[1732125417100,0.053025,94186.0,94182.0,0.66845045]
[1732125417408,0.053025,94186.0,94185.0,0.15401045]
[1732125418108,0.053025,94186.0,94185.0,0.30761045]
[1732125419600,0.053018,94199.0,94185.0,0.30761045]
[1732125419800,0.053018,94199.0,94198.0,0.15401045]
[1732125420005,0.053018,94199.0,94198.0,0.30761045]
[1732125420203,0.053005,94221.0,94198.0,0.30761045]
[1732125420407,0.053005,94221.0,94220.0,0.15401045]
[1732125420599,0.06802959,94221.0,94220.0,0.15401045]
[1732125420803,0.053005,94221.0,94220.0,0.15401045]
[1732125423395,0.053005,94221.0,94220.0,0.19464631]
[1732125424403,0.053005,94221.0,94220.0,0.34824631]
[1732125425398,0.053005,94221.0,94220.0,0.34624631]
[1732125427211,0.3608,94242.0,94220.0,0.34624631]
[1732125427524,0.3608,94242.0,94241.0,0.00013547]
[1732125427824,0.3608,94242.0,94241.0,0.15369547]
[1732125427825,0.413793,94242.0,94241.0,0.15369547]
[1732125428110,0.052993,94242.0,94241.0,0.15369547]
[1732125428504,0.084381,94264.0,94241.0,0.15369547]
[1732125428705,0.052986,94256.0,94255.0,0.3608]
[1732125430904,0.06806851,94256.0,94255.0,0.3608]
[1732125431104,0.052986,94256.0,94255.0,0.3608]
[1732125433206,0.052986,94256.0,94255.0,0.46148928]
[1732125433410,0.052974,94277.0,94255.0,0.46148928]
[1732125433717,0.00072,94282.0,94276.0,0.56217856]
[1732125433907,0.052974,94277.0,94276.0,0.46148928]
[1732125434108,0.052974,94277.0,94276.0,2.21569856]
[1732125434109,0.06794066,94277.0,94276.0,2.21569856]
[1732125434310,0.06794066,94277.0,94276.0,2.11500928]
[1732125434720,0.06794066,94277.0,94276.0,2.15534839]
[1732125435111,0.06794195,94277.0,94276.0,2.15534839]
[1732125435417,0.052974,94277.0,94276.0,2.15534839]
[1732125435808,0.06793976,94277.0,94276.0,0.55465911]
[1732125436120,0.052978,94270.0,94269.0,0.10068928]
[1732125436319,0.06794673,94270.0,94269.0,0.29565659]
[1732125436718,0.09198709,94270.0,94269.0,0.29565659]
[1732125437617,0.09198709,94270.0,94269.0,0.14213659]
[1732125437815,0.09198709,94270.0,94269.0,0.29165659]
[1732125439814,0.04915052,94289.0,94269.0,0.75314587]
[1732125440009,0.052968,94287.0,94286.0,0.3608]
[1732125440224,0.052968,94287.0,94286.0,0.25020928]
[1732125440415,0.052968,94287.0,94286.0,0.24620928]
[1732125440613,0.05958875,94287.0,94286.0,0.24620928]
[1732125440921,0.052968,94287.0,94286.0,0.24620928]
[1732125441125,0.05958859,94287.0,94286.0,0.24620928]
[1732125441517,0.052968,94287.0,94286.0,0.24620928]
[1732125441816,0.0595885,94287.0,94286.0,0.24620928]
[1732125442130,0.052968,94287.0,94286.0,0.25016928]
[1732125442317,0.05958838,94287.0,94286.0,0.10068928]
[1732125442621,0.05958838,94287.0,94286.0,0.25016928]
[1732125442931,0.052968,94287.0,94286.0,0.25016928]
[1732125443230,0.05958824,94287.0,94286.0,0.29141288]
[1732125445319,0.05958824,94287.0,94286.0,0.14193288]
[1732125445510,0.05958824,94287.0,94286.0,0.29825288]
[1732125446125,0.05958824,94287.0,94286.0,0.14193288]
[1732125446425,0.05958824,94287.0,94286.0,0.29825288]
[1732125447730,0.05958824,94287.0,94286.0,0.24005463]
[1732125447919,0.05958824,94287.0,94286.0,0.17950492]
[1732125448114,0.05958824,94287.0,94263.0,0.3608]
[1732125448115,0.052975,94275.0,94274.0,0.25700928]
[1732125448314,0.05959524,94275.0,94274.0,0.25700928]
[1732125448718,0.05959524,94275.0,94274.0,0.29831793]
[1732125449815,0.08246223,94275.0,94274.0,0.29831793]
[1732125450425,0.44326223,94275.0,94274.0,0.14199793]
[1732125450729,0.052992,94245.0,94244.0,0.10068928]
[1732125450924,0.052992,94245.0,94244.0,1.60068928]
[1732125451337,0.052992,94245.0,94244.0,1.70137856]
[1732125451627,0.052992,94245.0,94244.0,0.20137856]
[1732125451815,0.052992,94245.0,94244.0,0.25700928]
[1732125452021,0.052992,94245.0,94244.0,0.10068928]
[1732125452334,0.09636382,94245.0,94244.0,0.25700928]
[1732125452529,0.09636382,94245.0,94244.0,0.10068928]
[1732125452730,0.09636382,94245.0,94244.0,0.25700928]
[1732125452922,0.09636382,94245.0,94244.0,0.15632]
[1732125453233,0.09636382,94245.0,94241.0,0.04069679]
[1732125453234,0.052993,94242.0,94241.0,0.04013679]
[1732125453423,0.09636482,94242.0,94241.0,0.04013679]
[1732125455434,0.09636482,94242.0,94241.0,0.10068928]
[1732125456331,0.09636482,94242.0,94241.0,0.10079102]
[1732125456332,0.11291622,94242.0,94241.0,0.10079102]
[1732125456535,0.09644769,94242.0,94241.0,0.10079102]
[1732125457533,0.09644769,94242.0,94241.0,0.46159102]
[1732125458236,0.09514345,94242.0,94241.0,0.46159102]
[1732125460037,0.03552748,94242.0,94241.0,0.46159102]
[1732125460236,0.052993,94242.0,94241.0,0.61795102]
[1732125462534,0.052993,94242.0,94241.0,0.25715102]
[1732125462741,0.052993,94242.0,94241.0,0.00010174]
[1732125464623,0.052993,94242.0,94241.0,0.10079102]
[1732125465344,0.052993,94242.0,94241.0,0.46159102]
[1732125469028,0.052993,94242.0,94241.0,0.10079102]
[1732125469848,0.671313,94242.0,94197.0,0.3608]
[1732125470029,0.053018,94198.0,94197.0,0.3608]
[1732125470228,0.053018,94198.0,94185.0,0.62703561]
[1732125470229,0.413818,94199.0,94196.0,0.04105838]
[1732125470430,0.053019,94197.0,94196.0,0.04105838]
[1732125470631,0.05302,94194.0,94193.0,0.10068928]
[1732125471344,0.3608,94196.0,94188.0,9.448e-05]
[1732125471345,0.053023,94189.0,94188.0,9.448e-05]
[1732125471959,0.053015,94203.0,94188.0,0.14125123]
[1732125472129,0.3608,94204.0,94198.0,0.10068928]
[1732125472334,0.053018,94199.0,94198.0,0.10068928]
[1732125473950,0.053018,94199.0,94198.0,0.46148928]
[1732125474337,0.053018,94199.0,94198.0,0.3608]
[1732125474549,0.053018,94199.0,94198.0,0.5144]
[1732125476451,0.053016,94203.0,94198.0,0.83288]
[1732125476644,0.3608,94217.0,94202.0,0.10068928]
[1732125476852,0.3608,94217.0,94209.0,0.3608]
[1732125477046,0.053011,94210.0,94209.0,0.3608]
[1732125478151,0.053011,94210.0,94209.0,0.46148928]
[1732125478343,0.053011,94210.0,94209.0,0.3608]
[1732125479749,0.053016,94202.0,94198.0,0.3608]
[1732125479949,0.053018,94199.0,94198.0,0.3608]
[1732125480335,0.053018,94199.0,94198.0,0.41012737]
[1732125481949,0.053018,94199.0,94198.0,0.56376737]
[1732125482950,0.053018,94199.0,94198.0,0.88224737]
[1732125483150,0.053018,94199.0,94198.0,0.56376737]
[1732125483959,0.053014,94205.0,94198.0,0.88224737]
[1732125484149,0.053014,94205.0,94204.0,0.10068928]
[1732125484548,0.053014,94205.0,94204.0,0.41912928]
[1732125484944,0.053018,94199.0,94198.0,0.41012737]
[1732125485144,0.053018,94199.0,94198.0,0.56376737]
[1732125485452,0.053018,94199.0,94198.0,0.51876737]
[1732125485847,0.053018,94199.0,94198.0,0.20296737]
[1732125486248,0.053018,94199.0,94198.0,0.04932737]
[1732125486554,0.053019,94197.0,94196.0,0.14728]
[1732125489343,0.053019,94197.0,94182.0,0.3608]
[1732125489344,0.053023,94189.0,94182.0,0.3608]
[1732125489546,0.053023,94189.0,94172.0,0.13078928]
[1732125489547,0.41390797,94189.0,94177.0,0.14728]
[1732125489855,0.41390797,94189.0,94187.0,0.04883277]
[1732125490962,0.41390797,94189.0,94168.0,0.15405965]
[1732125490963,0.053038,94162.0,94161.0,0.033]
[1732125491251,0.053038,94162.0,94161.0,0.14728]
[1732125491454,0.053038,94162.0,94161.0,1.64728]
[1732125491644,0.053038,94162.0,94161.0,1.69604367]
[1732125491839,0.053038,94162.0,94161.0,0.19604367]
[1732125492060,0.053038,94162.0,94161.0,0.04886972]
[1732125492658,0.053038,94162.0,94161.0,0.19614972]
[1732125493450,0.053038,94162.0,94161.0,0.04886972]
[1732125493753,0.053038,94162.0,94161.0,0.19618972]
[1732125494242,0.053038,94162.0,94161.0,0.04886972]
[1732125494445,0.053039,94161.0,94159.0,0.3608]
[1732125494642,0.413839,94161.0,94157.0,0.14732]
[1732125495147,0.413839,94161.0,94160.0,0.007769]
[1732125495347,0.413839,94161.0,94135.0,0.36136]
[1732125495348,0.053053,94136.0,94135.0,0.50812]
[1732125495654,0.053053,94136.0,94135.0,2.05666819]
[1732125495955,0.053053,94136.0,94135.0,2.21072784]
[1732125496360,0.053053,94136.0,94135.0,2.06340784]
[1732125496547,0.053053,94136.0,94135.0,2.21072784]
[1732125497146,0.05304,94160.0,94135.0,2.21072784]
[1732125497344,0.053046,94149.0,94148.0,0.15405965]
[1732125498062,0.053046,94149.0,94144.0,0.14732]
[1732125498063,0.053048,94145.0,94144.0,0.14732]
[1732125498558,0.41472601,94149.0,94138.0,0.15405965]
[1732125498559,0.053051,94139.0,94138.0,0.15405965]
[1732125498759,0.053051,94139.0,94138.0,0.30137965]
[1732125498959,0.053051,94139.0,94138.0,0.15405965]
[1732125499147,0.053051,94139.0,94138.0,0.30141965]
[1732125499756,0.053051,94139.0,94138.0,0.15405965]
[1732125500058,0.053051,94139.0,94138.0,0.30141965]
[1732125501757,0.053051,94139.0,94138.0,0.14736]
[1732125502259,0.053046,94148.0,94136.0,0.0333]
[1732125502459,0.053052,94137.0,94136.0,0.0333]
[1732125502661,0.053052,94137.0,94136.0,0.18066]
[1732125502961,0.053053,94136.0,94135.0,1.9e-07]
[1732125503163,0.053069,94108.0,94107.0,0.0331]
[1732125503458,0.05307,94106.0,94105.0,0.3608]
[1732125503651,0.053073,94101.0,94098.0,0.44023551]
[1732125503850,0.053073,94101.0,94100.0,0.14860534]
[1732125504148,0.05320416,94101.0,94100.0,0.14873406]
[1732125507262,0.05320416,94101.0,94100.0,0.29613406]
[1732125507763,0.3608,94114.0,94100.0,0.29613406]
[1732125508064,0.413865,94114.0,94113.0,0.15405965]
[1732125508247,0.053065,94114.0,94113.0,0.15405965]
[1732125508957,0.053065,94116.0,94113.0,0.15405965]
[1732125509159,0.053065,94116.0,94115.0,0.15405965]
[1732125509566,0.00013017,94118.0,94115.0,0.15405965]
[1732125509756,0.053048,94145.0,94117.0,0.3608]
[1732125509961,0.053055,94133.0,94132.0,0.15405965]
[1732125510156,0.053055,94133.0,94132.0,0.30145965]
[1732125510764,0.05313071,94133.0,94132.0,0.1474]
[1732125512059,0.05313071,94133.0,94124.0,0.15405965]
[1732125512260,0.053059,94125.0,94124.0,0.15405965]
[1732125512464,0.053059,94125.0,94124.0,0.30145965]
[1732125514462,0.053059,94125.0,94124.0,0.35193772]
[1732125515354,0.053059,94125.0,94124.0,0.19787807]
[1732125516371,0.06551503,94125.0,94124.0,0.19787807]
[1732125516568,0.01245603,94125.0,94124.0,0.19787807]
[1732125516768,0.053059,94125.0,94124.0,0.19787807]
[1732125517162,0.053059,94125.0,94124.0,0.29887373]
[1732125517358,0.06552812,94125.0,94124.0,0.29887373]
[1732125520371,0.053059,94125.0,94124.0,0.29887373]
[1732125520569,0.06560244,94125.0,94124.0,0.29887373]
[1732125520785,0.06300339,94125.0,94124.0,0.29887373]
[1732125521275,0.04293389,94125.0,94124.0,0.29887373]
[1732125521977,0.053055,94133.0,94124.0,0.29887373]
[1732125522171,0.41497201,94138.0,94137.0,0.10099566]
[1732125522369,0.053052,94138.0,94137.0,0.10099566]
[1732125522972,0.05314984,94138.0,94137.0,0.10099566]
[1732125524492,9.784e-05,94138.0,94129.0,1.64692]
[1732125524772,0.053056,94130.0,94129.0,1.64692]
[1732125524977,0.053056,94130.0,94129.0,1.69562132]
[1732125525271,0.053056,94130.0,94129.0,0.19562132]
[1732125525971,0.053056,94130.0,94129.0,0.04870132]
[1732125526277,0.053056,94130.0,94129.0,0.14692]
[1732125526492,0.053059,94126.0,94125.0,1.5]
[1732125526775,0.053059,94126.0,94125.0,0.19695506]
[1732125528063,0.053059,94126.0,94125.0,0.29795072]
[1732125529482,0.053059,94126.0,94125.0,0.65875072]
[1732125532582,0.053059,94126.0,94125.0,0.55775506]
[1732125533471,0.053059,94126.0,94125.0,0.41083506]
[1732125533667,0.053059,94126.0,94125.0,0.79037643]
[1732125533980,0.053059,94126.0,94125.0,0.41083506]
[1732125534566,0.053059,94126.0,94125.0,0.05003506]
[1732125534768,0.05306,94123.0,94122.0,0.14692]
[1732125535288,0.06560521,94123.0,94122.0,0.14692]
[1732125535471,0.06560521,94123.0,94122.0,1.64692]
[1732125535672,0.05306,94123.0,94122.0,1.64692]
[1732125536379,0.06559751,94123.0,94122.0,1.64692]
[1732125536576,0.05306,94123.0,94122.0,1.64692]
[1732125536885,0.06559693,94123.0,94122.0,1.64692]
[1732125537087,0.06559693,94123.0,94122.0,1.5]
[1732125537284,0.05306,94123.0,94122.0,1.97223654]
[1732125538082,0.05306,94123.0,94122.0,2.41247205]
[1732125538286,0.06560049,94123.0,94122.0,2.41247205]
[1732125538469,0.05306,94123.0,94122.0,2.41247205]
[1732125538667,0.05306,94123.0,94122.0,1.97223654]
[1732125538868,0.05306,94123.0,94122.0,2.02068176]
[1732125539583,0.05306,94123.0,94122.0,2.02229448]
[1732125540085,0.06559874,94123.0,94122.0,2.02229448]
[1732125540277,0.41386,94123.0,94122.0,2.02229448]
[1732125540474,0.05306,94123.0,94122.0,2.02229448]
[1732125541176,0.41386,94123.0,94122.0,2.31924031]
[1732125541490,0.42637495,94123.0,94122.0,2.02229448]
[1732125542075,0.41386,94123.0,94122.0,2.46616031]
[1732125542378,0.42637218,94123.0,94122.0,2.02229448]
[1732125542574,0.42637218,94123.0,94122.0,1.87537448]
[1732125542780,0.42637218,94123.0,94122.0,1.54844522]
[1732125543081,0.42637218,94123.0,94122.0,0.04844522]
[1732125543267,0.42637218,94123.0,94122.0,0.32692926]
[1732125543474,0.41386,94123.0,94117.0,0.14692]
[1732125543780,0.053063,94118.0,94117.0,0.14692]
[1732125543991,0.053063,94118.0,94117.0,0.33063969]
[1732125544182,0.371823,94118.0,94117.0,0.21576769]
[1732125544378,0.053072,94103.0,94102.0,0.44386583]
[1732125544576,0.053073,94101.0,94100.0,0.54399455]
[1732125544776,0.053073,94101.0,94100.0,0.10012872]
[1732125546775,0.15406866,94101.0,94100.0,0.10012872]
[1732125546973,0.15406866,94101.0,94100.0,0.04681072]
[1732125547185,0.15406866,94101.0,94100.0,7.2e-07]
[1732125547390,0.45406866,94101.0,94100.0,7.2e-07]
[1732125548189,0.1984594,94101.0,94100.0,7.2e-07]
[1732125548387,0.4984594,94101.0,94100.0,7.2e-07]
[1732125549386,0.1984594,94101.0,94100.0,7.2e-07]
[1732125549688,0.053073,94101.0,94100.0,7.2e-07]